[Event "GER-ch Youth-U12 2022"]
[Site "Willingen"]
[Date "2022.06.06"]
[Round "3.15"]
[White "Polzin, Gustav"]
[Black "Radeke, Timothy"]
[Result "1-0"]
[ECO "C54"]
[WhiteElo "1643"]
[BlackElo "1129"]
[Annotator "NA RC COMBH"]
[PlyCount "69"]
[EventDate "2022.06.05"]
[EventType "swiss"]
[EventRounds "9"]
[EventCountry "GER"]
[SourceTitle "playchess.com"]
[Source "ChessBase"]
[SourceQuality "1"]
[TimeControl "40/4500+30:900+30"]

1. e4 {[%emt 0:00:00]} e5 {[%emt 0:00:00]} 2. Nf3 {[%emt 0:00:00]} Nc6 {[%emt 0:00:00]} 3. Bc4 {[%emt 0:00:00]} Bc5 {[%emt 0:00:00]} 4. c3 {[%emt 0:00:00]} Nf6 {[%emt 0:00:00]} 5. d4 {[%emt 0:00:00]} exd4 {[%emt 0:00:00]} 6. e5 {[%emt 0:00:00]} d5 {[%emt 0:00:00]} 7. Bb5 {[%emt 0:00:00]} Ne4 {[%emt 0:00:00]} 8. cxd4 {[%emt 0:00:00]} Bb6 {[%emt 0:00:00]} 9. Nc3 {[%emt 0:00:00]} Bg4 {[%emt 0:00:00]} 10. h3 {[%emt 0:00:00]} Bh5 {[%emt 0:00:00]} 11. Be3 {[%emt 0:03:22]} O-O {[%emt 0:00:00]} 12. Qc2 {[%emt 0:02:36]} Nb4 {[%emt 0:00:00]} 13. Qb3 {[%emt 0:04:33]} a5 {[%emt 0:01:12]} 14. a3 {[%emt 0:04:42]} c6 {[%emt 0:02:57]} 15. Be2 {[%emt 0:12:29]} Na6 {[%emt 0:00:14]} 16. O-O {[%emt 0:00:46]} Nb8 {[%emt 0:22:14]} 17. Rac1 {[%emt 0:10:37]} Nd7 {[%emt 0:03:29]} 18. e6 {[%emt 0:01:35]} Nxc3 {[%emt 0:01:29]} 19. exf7+ {[%emt 0:03:43]} Rxf7 {[%emt 0:00:28]} 20. bxc3 {[%emt 0:00:23]} Qf6 {[%emt 0:01:18]} 21. Rfe1 {[%emt 0:03:48]} Qd6 {[%emt 0:05:05]} 22. Ne5 {[%emt 0:00:30]} Bc7 {[%emt 0:14:51]} 23. Bxh5 {[%emt 0:00:49]} Rf5 {[%emt 0:00:11]} 24. Bg4 {[%emt 0:01:56]} Nxe5 {[%emt 0:00:44]} 25. Bxf5 {[%emt 0:00:56]} Nf3+ {[%emt 0:02:12]} 26. gxf3 {[%emt 0:00:24]} Rf8 {[%emt 0:00:06]} 27. Qc2 {[%emt 0:05:47]} g6 {[%emt 0:00:18]} 28. Bg4 {[%emt 0:01:09]} h5 {[%emt 0:00:23]} 29. Bxh5 {[%emt 0:00:37]} gxh5 {[%emt 0:00:25]} 30. Kf1 {[%emt 0:00:31]} Rxf3 {[%emt 0:00:34]} 31. Ke2 {[%emt 0:00:26]} Rf6 {[%emt 0:02:09]} 32. Rg1+ {[%emt 0:00:49]} Kh8 {[%emt 0:00:20]} 33. Rg5 {[%emt 0:00:33]} Qxa3 {[%emt 0:02:03]} 34. Rcg1 {[%emt 0:00:13]} Qf8 {[%emt 0:00:49]} 35. Rxh5+ {[%emt 0:00:19]} 1-0

[Event "GER-ch Youth-U12 2022"]
[Site "Willingen"]
[Date "2022.06.06"]
[Round "3.16"]
[White "Lu, Yunong Elias"]
[Black "Hellenbroich, Hanno"]
[Result "1-0"]
[ECO "B52"]
[WhiteElo "1671"]
[BlackElo "1274"]
[Annotator "NA RC COMBH"]
[PlyCount "94"]
[EventDate "2022.06.05"]
[EventType "swiss"]
[EventRounds "9"]
[EventCountry "GER"]
[SourceTitle "playchess.com"]
[Source "ChessBase"]
[SourceQuality "1"]
[TimeControl "40/4500+30:900+30"]

1. e4 {[%emt 0:00:00]} c5 {[%emt 0:00:00]} 2. Nf3 {[%emt 0:00:00]} d6 {[%emt 0:00:00]} 3. Bb5+ {[%emt 0:00:00]} Bd7 {[%emt 0:00:00]} 4. Bxd7+ {[%emt 0:00:00]} Qxd7 {[%emt 0:00:00]} 5. c4 {[%emt 0:00:00]} Nf6 {[%emt 0:00:00]} 6. Nc3 {[%emt 0:00:00]} Nc6 {[%emt 0:00:00]} 7. d4 {[%emt 0:00:00]} cxd4 {[%emt 0:00:00]} 8. Nxd4 {[%emt 0:00:00]} Nxd4 {[%emt 0:00:00]} 9. Qxd4 {[%emt 0:00:00]} g6 {[%emt 0:00:00]} 10. f3 {[%emt 0:00:00]} Bg7 {[%emt 0:00:00]} 11. Qd3 {[%emt 0:00:00]} O-O {[%emt 0:00:00]} 12. O-O {[%emt 0:00:00]} Rfc8 {[%emt 0:00:00]} 13. Be3 {[%emt 0:00:00]} Qc6 {[%emt 0:02:08]} 14. b3 {[%emt 0:02:32]} Nd7 {[%emt 0:00:32]} 15. Nd5 {[%emt 0:02:08]} Kf8 {[%emt 0:00:03]} 16. Rac1 {[%emt 0:03:36]} Nc5 {[%emt 0:05:13]} 17. Qd2 {[%emt 0:06:04]} a5 {[%emt 0:12:59]} 18. Bh6 {[%emt 0:11:28]} Re8 {[%emt 0:00:13]} 19. Qc3 {[%emt 0:06:49]} e5 {[%emt 0:02:16]} 20. Qe3 {[%emt 0:01:28]} Ne6 {[%emt 0:06:01]} 21. Nf6 {[%emt 0:07:00]} Red8 {[%emt 0:01:26]} 22. Nxh7+ {[%emt 0:00:47]} Kg8 {[%emt 0:00:19]} 23. Bxg7 {[%emt 0:01:38]} Kxg7 {[%emt 0:06:24]} 24. Ng5 {[%emt 0:01:15]} Nd4 {[%emt 0:05:57]} 25. f4 {[%emt 0:04:38]} Qc5 {[%emt 0:00:41]} 26. Kh1 {[%emt 0:00:54]} f6 {[%emt 0:06:34]} 27. Nh3 {[%emt 0:07:52]} a4 {[%emt 0:03:20]} 28. f5 {[%emt 0:04:01]} g5 {[%emt 0:11:13]} 29. Rc3 {[%emt 0:12:27]} Rg8 {[%emt 0:06:03]} 30. Rb1 {[%emt 0:05:28]} axb3 {[%emt 0:02:40]} 31. axb3 {[%emt 0:00:27]} Ra3 {[%emt 0:00:47]} 32. b4 {[%emt 0:02:09]} Rxc3 {[%emt 0:01:04]} 33. Qxc3 {[%emt 0:00:17]} Qc6 {[%emt 0:03:06]} 34. Qd3 {[%emt 0:02:38]} Rc8 {[%emt 0:00:57]} 35. c5 {[%emt 0:02:06]} dxc5 {[%emt 0:00:49]} 36. bxc5 {[%emt 0:00:13]} g4 {[%emt 0:03:54]} 37. Ng1 {[%emt 0:01:53]} Rd8 {[%emt 0:01:55]} 38. Qe3 {[%emt 0:00:59]} Nc2 {[%emt 0:01:21]} 39. Qe2 {[%emt 0:00:19]} Nd4 {[%emt 0:04:17]} 40. Qxg4+ {[%emt 0:00:21]} Kf8 {[%emt 0:00:31]} 41. Rb6 {[%emt 0:15:34]} Qxc5 {[%emt 0:17:46]} 42. Rxf6+ {[%emt 0:00:21]} Ke8 {[%emt 0:00:24]} 43. Qg7 {[%emt 0:02:38]} Qe7 {[%emt 0:00:00]} 44. Qg6+ {[%emt 0:00:00]} Kd7 {[%emt 0:00:00]} 45. Rf7 {[%emt 0:00:00]} Qxf7 {[%emt 0:00:00]} 46. Qxf7+ {[%emt 0:00:00]} Kc8 {[%emt 0:00:00]} 47. g4 {[%emt 0:00:00]} b5 {[%emt 0:00:00]} 1-0

[Event "GER-ch Youth-U12 2022"]
[Site "Willingen"]
[Date "2022.06.06"]
[Round "3.17"]
[White "Freude, Paul"]
[Black "Burkart, Lloyd Shang"]
[Result "1-0"]
[ECO "B84"]
[WhiteElo "1415"]
[BlackElo "1559"]
[Annotator "NA RC COMBH"]
[PlyCount "81"]
[EventDate "2022.06.05"]
[EventType "swiss"]
[EventRounds "9"]
[EventCountry "GER"]
[SourceTitle "playchess.com"]
[Source "ChessBase"]
[SourceQuality "1"]
[TimeControl "40/4500+30:900+30"]

1. e4 {[%emt 0:00:00]} c5 {[%emt 0:00:00]} 2. Nf3 {[%emt 0:00:00]} d6 {[%emt 0:00:00]} 3. d4 {[%emt 0:00:00]} cxd4 {[%emt 0:00:00]} 4. Nxd4 {[%emt 0:00:00]} Nf6 {[%emt 0:00:00]} 5. Nc3 {[%emt 0:00:00]} a6 {[%emt 0:00:00]} 6. Be3 {[%emt 0:00:00]} e6 {[%emt 0:00:00]} 7. a4 {[%emt 0:00:00]} b6 {[%emt 0:00:00]} 8. Be2 {[%emt 0:00:00]} Qc7 {[%emt 0:00:00]} 9. O-O {[%emt 0:00:00]} Bb7 {[%emt 0:00:00]} 10. f3 {[%emt 0:00:00]} Nbd7 {[%emt 0:00:00]} 11. Qe1 {[%emt 0:00:00]} Be7 {[%emt 0:13:55]} 12. Qf2 {[%emt 0:00:00]} O-O {[%emt 0:04:29]} 13. g4 {[%emt 0:00:00]} Ne5 {[%emt 0:06:24]} 14. g5 {[%emt 0:00:16]} Nfd7 {[%emt 0:01:26]} 15. h4 {[%emt 0:03:38]} Nc4 {[%emt 0:06:28]} 16. Bc1 {[%emt 0:00:50]} Rac8 {[%emt 0:13:08]} 17. f4 {[%emt 0:03:29]} Na5 {[%emt 0:09:27]} 18. f5 {[%emt 0:04:21]} e5 {[%emt 0:04:11]} 19. Nf3 {[%emt 0:08:41]} Qc5 {[%emt 0:06:58]} 20. Be3 {[%emt 0:00:24]} Qb4 {[%emt 0:00:49]} 21. f6 {[%emt 0:02:03]} gxf6 {[%emt 0:02:00]} 22. gxf6 {[%emt 0:01:08]} Bxf6 {[%emt 0:00:05]} 23. Bh6 {[%emt 0:00:52]} Rfd8 {[%emt 0:01:39]} 24. Kh2 {[%emt 0:08:11]} d5 {[%emt 0:10:44]} 25. Rg1+ {[%emt 0:03:51]} Kh8 {[%emt 0:00:03]} 26. Bg5 {[%emt 0:03:12]} Qe7 {[%emt 0:01:07]} 27. Bxa6 {[%emt 0:02:23]} Rxc3 {[%emt 0:01:43]} 28. Bxb7 {[%emt 0:00:37]} Rxf3 {[%emt 0:00:03]} 29. Qxf3 {[%emt 0:00:48]} Nxb7 {[%emt 0:00:03]} 30. Bh6 {[%emt 0:02:48]} Qe8 {[%emt 0:04:08]} 31. Rg3 {[%emt 0:03:41]} dxe4 {[%emt 0:00:21]} 32. Qg2 {[%emt 0:01:19]} Nbc5 {[%emt 0:00:32]} 33. Rg1 {[%emt 0:00:11]} Ne6 {[%emt 0:00:12]} 34. Qxe4 {[%emt 0:03:52]} Rc8 {[%emt 0:01:26]} 35. Qf5 {[%emt 0:01:07]} Rd8 {[%emt 0:00:55]} 36. Rd1 {[%emt 0:02:05]} Rc8 {[%emt 0:00:40]} 37. Rxd7 {[%emt 0:00:42]} Rxc2+ {[%emt 0:00:19]} 38. Kh1 {[%emt 0:00:27]} Rf2 {[%emt 0:00:42]} 39. Qxf2 {[%emt 0:00:21]} Nf4 {[%emt 0:00:19]} 40. Qxb6 {[%emt 0:01:14]} Qc8 {[%emt 0:00:42]} 41. Qxf6# {[%emt 0:15:45]} 1-0

[Event "GER-ch Youth-U12 2022"]
[Site "Willingen"]
[Date "2022.06.06"]
[Round "3.18"]
[White "Noennig, Jakob"]
[Black "Halich, Jan Finnian"]
[Result "1-0"]
[ECO "C54"]
[WhiteElo "1556"]
[BlackElo "877"]
[Annotator "NA RC COMBH"]
[PlyCount "51"]
[EventDate "2022.06.05"]
[EventType "swiss"]
[EventRounds "9"]
[EventCountry "GER"]
[SourceTitle "playchess.com"]
[Source "ChessBase"]
[SourceQuality "1"]
[TimeControl "40/4500+30:900+30"]

1. e4 {[%emt 0:00:00]} e5 {[%emt 0:00:00]} 2. Nf3 {[%emt 0:00:00]} Nc6 {[%emt 0:00:00]} 3. Bc4 {[%emt 0:00:00]} Bc5 {[%emt 0:00:00]} 4. c3 {[%emt 0:00:00]} Nf6 {[%emt 0:00:00]} 5. d4 {[%emt 0:00:00]} exd4 {[%emt 0:00:00]} 6. e5 {[%emt 0:00:00]} d5 {[%emt 0:00:00]} 7. Bb5 {[%emt 0:00:00]} Ne4 {[%emt 0:00:00]} 8. cxd4 {[%emt 0:00:00]} Bb4+ {[%emt 0:00:00]} 9. Bd2 {[%emt 0:00:00]} Bxd2+ {[%emt 0:00:00]} 10. Nbxd2 {[%emt 0:00:00]} Nxd2 {[%emt 0:00:00]} 11. Qxd2 {[%emt 0:00:00]} O-O {[%emt 0:00:00]} 12. Bxc6 {[%emt 0:00:00]} bxc6 {[%emt 0:00:00]} 13. O-O {[%emt 0:00:00]} Bg4 {[%emt 0:00:00]} 14. Ne1 {[%emt 0:00:00]} Qe7 {[%emt 0:00:00]} 15. Nd3 {[%emt 0:00:00]} f6 {[%emt 0:00:00]} 16. Rfe1 {[%emt 0:00:00]} Bf5 {[%emt 0:00:00]} 17. exf6 {[%emt 0:00:00]} Qxf6 {[%emt 0:00:19]} 18. Ne5 {[%emt 0:00:00]} Rfe8 {[%emt 0:00:00]} 19. Rac1 {[%emt 0:00:00]} Re6 {[%emt 0:00:00]} 20. Rc5 {[%emt 0:00:29]} Rd8 {[%emt 0:03:19]} 21. Rec1 {[%emt 0:01:38]} Rdd6 {[%emt 0:02:42]} 22. Qa5 {[%emt 0:02:00]} Qg5 {[%emt 0:01:09]} 23. Qxc7 {[%emt 0:01:43]} Bg6 {[%emt 0:06:13]} 24. Qxa7 {[%emt 0:17:09]} Qd2 {[%emt 0:05:24]} 25. R5c2 {[%emt 0:04:42]} Qxd4 {[%emt 0:00:00]} 26. Qxd4 {[%emt 0:02:03]} 1-0

[Event "GER-ch Youth-U12 2022"]
[Site "Willingen"]
[Date "2022.06.06"]
[Round "3.19"]
[White "Blodig, Vincent"]
[Black "Prashanthakumar, Arju"]
[Result "1-0"]
[ECO "C56"]
[WhiteElo "1461"]
[BlackElo "1265"]
[Annotator "NA RC COMBH"]
[PlyCount "58"]
[EventDate "2022.06.05"]
[EventType "swiss"]
[EventRounds "9"]
[EventCountry "GER"]
[SourceTitle "playchess.com"]
[Source "ChessBase"]
[SourceQuality "1"]
[TimeControl "40/4500+30:900+30"]

1. e4 {[%emt 0:00:00]} e5 {[%emt 0:00:00]} 2. Nf3 {[%emt 0:00:00]} Nc6 {[%emt 0:00:00]} 3. d4 {[%emt 0:00:00]} exd4 {[%emt 0:00:00]} 4. Bc4 {[%emt 0:00:00]} Bc5 {[%emt 0:00:00]} 5. O-O {[%emt 0:00:00]} Nf6 {[%emt 0:00:00]} 6. e5 {[%emt 0:00:00]} d5 {[%emt 0:04:38]} 7. Bb5 {[%emt 0:00:00]} Ne4 {[%emt 0:07:35]} 8. Nxd4 {[%emt 0:00:00]} Bxd4 {[%emt 0:05:17]} 9. Qxd4 {[%emt 0:00:00]} O-O {[%emt 0:04:36]} 10. Bxc6 {[%emt 0:00:00]} bxc6 {[%emt 0:02:06]} 11. f3 {[%emt 0:00:00]} Ng5 {[%emt 0:06:58]} 12. Bxg5 {[%emt 0:00:00]} Qxg5 {[%emt 0:03:27]} 13. Nd2 {[%emt 0:04:13]} Re8 {[%emt 0:03:06]} 14. f4 {[%emt 0:00:00]} Qe7 {[%emt 0:04:51]} 15. b4 {[%emt 0:05:48]} Bf5 {[%emt 0:05:45]} 16. c3 {[%emt 0:01:56]} a5 {[%emt 0:06:35]} 17. a3 {[%emt 0:03:34]} axb4 {[%emt 0:08:33]} 18. axb4 {[%emt 0:01:04]} h6 {[%emt 0:03:36]} 19. Qc5 {[%emt 0:08:04]} Qxc5+ {[%emt 0:01:37]} 20. bxc5 {[%emt 0:00:15]} Reb8 {[%emt 0:03:27]} 21. Rxa8 {[%emt 0:17:46]} Rxa8 {[%emt 0:00:54]} 22. Nb3 {[%emt 0:00:41]} Ra3 {[%emt 0:02:22]} 23. Nd4 {[%emt 0:00:41]} Bd3 {[%emt 0:02:11]} 24. Rc1 {[%emt 0:00:51]} Bb5 {[%emt 0:01:53]} 25. f5 {[%emt 0:06:14]} Kf8 {[%emt 0:04:15]} 26. e6 {[%emt 0:06:27]} Ke7 {[%emt 0:01:54]} 27. Re1 {[%emt 0:00:59]} Rxc3 {[%emt 0:01:48]} 28. f6+ {[%emt 0:00:39]} gxf6 {[%emt 0:01:10]} 29. Nf5+ {[%emt 0:00:13]} Ke8 {[%emt 0:00:00]} 1-0

[Event "GER-ch Youth-U12 2022"]
[Site "Willingen"]
[Date "2022.06.06"]
[Round "3.20"]
[White "Agirretxe San Sebastian, Jesus M"]
[Black "Wylie, Leonard"]
[Result "1/2-1/2"]
[ECO "D85"]
[WhiteElo "2117"]
[BlackElo "1733"]
[Annotator "TA"]
[PlyCount "79"]
[EventDate "2022.06.05"]
[EventType "swiss"]
[EventRounds "9"]
[EventCountry "GER"]
[SourceTitle "playchess.com"]
[Source "ChessBase"]
[SourceQuality "1"]
[TimeControl "40/4500+30:900+30"]

{[%evp 17,79,-13,-15,-105,-105,-105,-99,-106,58,61,53,-22,-14,-72,-79,-81,-85,-75,-76,-83,0,0,0,0,0,0,0,0,0,-56,-64,-66,-66,-629,-607,-1614,-1604,-1160,-1295,-1470,-1297,-12831,-12831,-12840,-12840,-12841,-2333,-12841,-12841,-12842,-12842,-12843,-12843,-12843,0,0,0,0,0,0,0,0,0,0]} 1. d4 {[%emt 0:00:00]} Nf6 {[%emt 0:00:00]} 2. c4 {[%emt 0:00:00]} g6 {[%emt 0:00:00]} 3. Nc3 {[%emt 0:00:00]} d5 {[%emt 0:00:00]} 4. cxd5 {[%emt 0:00:00]} Nxd5 {[%emt 0:00:00]} 5. e4 {[%emt 0:00:00]} Nxc3 {[%emt 0:00:00]} 6. bxc3 {[%emt 0:00:00]} Bg7 {[%emt 0:00:00]} 7. Nf3 {[%emt 0:00:00]} c5 {[%emt 0:00:00]} 8. Be2 {[%emt 0:00:00]} Nc6 {[%emt 0:00:00]} 9. Be3 {[%emt 0:00:00]} Bg4 {[%emt 0:00:00]} 10. Qb3 {[%emt 0:05:01] D85: Exchange Grünfeld: Unusual White 7th moves and lines with 7 Nf3.} (10. e5 $11) 10... Bxf3 $17 {[%emt 0:00:00]} 11. Bxf3 {[%emt 0:00:40]} cxd4 {[%emt 0:00:00]} 12. cxd4 {[%emt 0:00:14] [#] Black is better.} Rb8 $146 {[%emt 0:00:00]} ({Black should play} 12... Nxd4 $17 13. Bxd4 Qa5+ 14. Kf1 Bxd4) ({Predecessor:} 12... Bxd4 13. Bxd4 Qxd4 14. Rd1 Qb4+ 15. Qxb4 Nxb4 16. Rb1 Nd3+ 17. Ke2 O-O-O 18. Rb3 Ne5 {0-1 (41) Sibajeva,M-Dienine,D (2008) Klaipeda 2012}) 13. Rd1 $1 $14 {[%emt 0:01:10]} O-O {[%emt 0:00:00][%cal Rc6d4]} 14. O-O {[%emt 0:00:19]} (14. d5 $14 Na5 15. Qb4) 14... Nxd4 {[%emt 0:03:48]} 15. Bxd4 {[%emt 0:03:31]} (15. Qa4 $11 {remains equal.} e5 16. Bxd4 exd4 17. Qxa7) 15... Bxd4 $17 {[%emt 0:01:42]} 16. e5 {[%emt 0:02:14] Threatens to win with Qb4.} Qb6 {[%emt 0:00:37] Prevents Qb4.} 17. Qxb6 {[%emt 0:01:09]} Bxb6 {[%emt 0:00:08]} 18. Rd7 {[%emt 0:00:15][%csl LRb7,LRe7] [#]} Bc5 {[%emt 0:01:55]} (18... e6 $1 $17) 19. Bxb7 $11 {[%emt 0:03:33]} Rfd8 {[%emt 0:02:18]} 20. Rfd1 {[%emt 0:01:29]} Rxd7 {[%emt 0:00:00]} 21. Rxd7 {[%emt 0:00:07][%mdl 4096] Endgame KRB-KRB} Kf8 {[%emt 0:00:00]} 22. g3 {[%emt 0:05:25]} Ke8 {[%emt 0:01:17]} 23. Rc7 {[%emt 0:05:51] [#]} ({White should try} 23. Bc6 $11 Kf8 24. Bb7) 23... Bxf2+ $1 $15 {[%emt 0:01:02]} 24. Kxf2 {[%emt 0:00:40] KRB-KR} Kd8 {[%emt 0:00:09]} 25. Rc8+ {[%emt 0:10:26][%mdl 8192]} Rxc8 $19 {[%emt 0:01:09]} 26. Bxc8 {[%emt 0:00:07]} Kxc8 {[%emt 0:00:04] KP-KP} 27. Ke3 {[%emt 0:00:06]} Kd7 {[%emt 0:00:17]} 28. Kd4 {[%emt 0:02:08]} Ke6 {[%emt 0:01:15]} 29. a4 {[%emt 0:00:16]} f6 {[%emt 0:00:20]} 30. exf6 {[%emt 0:00:22]} exf6 {[%emt 0:00:08]} 31. Kc5 {[%emt 0:00:20]} Kd7 {[%emt 0:00:08]} (31... g5 $142 32. Kd4 a5) 32. h4 {[%emt 0:01:40]} h5 {[%emt 0:00:47]} 33. Kd5 {[%emt 0:01:56]} g5 {[%emt 0:00:12]} 34. a5 {[%emt 0:00:40]} a6 {[%emt 0:00:20]} 35. Kc5 {[%emt 0:01:34]} gxh4 $2 {[%emt 0:02:26]} (35... Ke6 $19 36. Kb6 f5 37. hxg5 f4 38. gxf4 h4 39. Kxa6 h3 40. g6 h2 41. g7 Kf7 42. g8=R Kxg8 43. Kb5 Kg7 44. f5 Kf6 45. Kc6 h1=Q+ 46. Kd6 Kxf5 47. a6 Qh6+ 48. Kc5 Qxa6 49. Kb4 Qc6 50. Ka3 Ke4 51. Kb4 Kd3 52. Kb3 Qb5+ 53. Ka3 Kc3 54. Ka2 Qb2#) 36. gxh4 $11 {[%emt 0:00:08] The position is equal.} Ke6 {[%emt 0:02:18] aiming for ...f5.} (36... f5 $5 37. Kd5 f4 $11) 37. Kb6 {[%emt 0:01:50]} Kd6 {[%emt 0:00:58] ...f5 is the strong threat.} 38. Kxa6 {[%emt 0:01:04]} Kc6 {[%emt 0:00:08]} 39. Ka7 {[%emt 0:00:06]} f5 {[%emt 0:02:05]} 40. a6 {[%emt 0:00:07] Weighted Error Value: White=0.99/Black=0.49} 1/2-1/2

[Event "GER-ch Youth-U12 2022"]
[Site "Willingen"]
[Date "2022.06.06"]
[Round "3.21"]
[White "Albrecht, Neil"]
[Black "Mandalka, Justus"]
[Result "0-1"]
[ECO "B38"]
[WhiteElo "1376"]
[BlackElo "1402"]
[Annotator "NA RC COMBH"]
[PlyCount "78"]
[EventDate "2022.06.05"]
[EventType "swiss"]
[EventRounds "9"]
[EventCountry "GER"]
[SourceTitle "playchess.com"]
[Source "ChessBase"]
[SourceQuality "1"]
[TimeControl "40/4500+30:900+30"]

1. e4 {[%emt 0:00:00]} c5 {[%emt 0:00:00]} 2. Nf3 {[%emt 0:00:00]} Nc6 {[%emt 0:00:00]} 3. d4 {[%emt 0:00:00]} cxd4 {[%emt 0:00:00]} 4. Nxd4 {[%emt 0:00:00]} g6 {[%emt 0:00:00]} 5. c4 {[%emt 0:00:00]} Bg7 {[%emt 0:00:00]} 6. Be3 {[%emt 0:00:00]} Nf6 {[%emt 0:00:00]} 7. Nc3 {[%emt 0:00:00]} d6 {[%emt 0:00:00]} 8. Be2 {[%emt 0:00:00]} O-O {[%emt 0:00:00]} 9. Qd2 {[%emt 0:00:00]} Bd7 {[%emt 0:00:00]} 10. O-O {[%emt 0:00:00]} Nxd4 {[%emt 0:00:00]} 11. Bxd4 {[%emt 0:00:00]} Bc6 {[%emt 0:00:00]} 12. f3 {[%emt 0:00:00]} a5 {[%emt 0:00:00]} 13. b3 {[%emt 0:00:00]} Nd7 {[%emt 0:00:00]} 14. Bf2 {[%emt 0:00:00]} Nc5 {[%emt 0:00:00]} 15. Rac1 {[%emt 0:00:00]} e6 {[%emt 0:00:00]} 16. Rfd1 {[%emt 0:00:00]} Be5 {[%emt 0:00:00]} 17. Nb5 {[%emt 0:22:27]} Bxb5 {[%emt 0:00:00]} 18. cxb5 {[%emt 0:00:23]} Qe7 {[%emt 0:00:00]} 19. g3 {[%emt 0:11:12]} f5 {[%emt 0:03:48]} 20. Bxc5 {[%emt 0:07:58]} dxc5 {[%emt 0:00:16]} 21. Qd7 {[%emt 0:00:34]} Qxd7 {[%emt 0:00:08]} 22. Rxd7 {[%emt 0:00:07]} Bd4+ {[%emt 0:00:12]} 23. Kh1 {[%emt 0:00:25]} Rf7 {[%emt 0:00:29]} 24. Bc4 {[%emt 0:01:08]} Rxd7 {[%emt 0:00:14]} 25. Bxe6+ {[%emt 0:00:06]} Rf7 {[%emt 0:00:04]} 26. exf5 {[%emt 0:00:21]} gxf5 {[%emt 0:00:05]} 27. Re1 {[%emt 0:00:09]} Kg7 {[%emt 0:00:31]} 28. Bxf7 {[%emt 0:00:05]} Kxf7 {[%emt 0:00:04]} 29. g4 {[%emt 0:00:09]} a4 {[%emt 0:00:14]} 30. gxf5 {[%emt 0:00:10]} axb3 {[%emt 0:00:05]} 31. axb3 {[%emt 0:00:08]} Ra5 {[%emt 0:00:16]} 32. Rd1 {[%emt 0:00:14]} Rxb5 {[%emt 0:00:12]} 33. Rd3 {[%emt 0:00:06]} Kf6 {[%emt 0:00:06]} 34. Kg2 {[%emt 0:00:13]} Kxf5 {[%emt 0:00:03]} 35. Kg3 {[%emt 0:00:05]} Rb6 {[%emt 0:00:14]} 36. f4 {[%emt 0:00:08]} Ke4 {[%emt 0:00:10]} 37. Rd1 {[%emt 0:00:14]} Rxb3+ {[%emt 0:00:06]} 38. Kg4 {[%emt 0:00:06]} c4 {[%emt 0:00:26]} 39. f5 {[%emt 0:00:04]} c3 {[%emt 0:00:04]} 0-1

[Event "GER-ch Youth-U12 2022"]
[Site "Willingen"]
[Date "2022.06.06"]
[Round "3.22"]
[White "Li, Luxuan"]
[Black "Uyar, Levin"]
[Result "0-1"]
[ECO "C45"]
[WhiteElo "1235"]
[BlackElo "1306"]
[Annotator "NA RC COMBH"]
[PlyCount "96"]
[EventDate "2022.06.05"]
[EventType "swiss"]
[EventRounds "9"]
[EventCountry "GER"]
[SourceTitle "playchess.com"]
[Source "ChessBase"]
[SourceQuality "1"]
[TimeControl "40/4500+30:900+30"]

1. e4 {[%emt 0:00:00]} e5 {[%emt 0:00:00]} 2. Nf3 {[%emt 0:00:00]} Nc6 {[%emt 0:00:00]} 3. d4 {[%emt 0:00:00]} exd4 {[%emt 0:00:00]} 4. Nxd4 {[%emt 0:00:00]} Nf6 {[%emt 0:00:00]} 5. Nxc6 {[%emt 0:00:00]} bxc6 {[%emt 0:00:00]} 6. e5 {[%emt 0:00:00]} Qe7 {[%emt 0:00:00]} 7. Qe2 {[%emt 0:00:00]} Nd5 {[%emt 0:00:00]} 8. g3 {[%emt 0:00:00]} g6 {[%emt 0:00:00]} 9. a3 {[%emt 0:00:00]} Bg7 {[%emt 0:00:00]} 10. f4 {[%emt 0:00:00]} O-O {[%emt 0:00:00]} 11. Bg2 {[%emt 0:00:00]} Re8 {[%emt 0:03:33]} 12. O-O {[%emt 0:00:00]} Bb7 {[%emt 0:24:10]} 13. c4 {[%emt 0:01:54]} Nb6 {[%emt 0:19:51]} 14. Qc2 {[%emt 0:04:50]} Qc5+ {[%emt 0:02:42]} 15. Kh1 {[%emt 0:02:23]} Qxc4 {[%emt 0:00:12]} 16. Qxc4 {[%emt 0:03:06]} Nxc4 {[%emt 0:00:13]} 17. Rf3 {[%emt 0:03:56]} f6 {[%emt 0:02:56]} 18. b3 {[%emt 0:02:44]} Nb6 {[%emt 0:02:20]} 19. exf6 {[%emt 0:03:43]} Bxf6 {[%emt 0:00:41]} 20. Ra2 {[%emt 0:02:25]} Re1+ {[%emt 0:01:06]} 21. Rf1 {[%emt 0:00:47]} Rae8 {[%emt 0:00:13]} 22. Bd2 {[%emt 0:06:32]} Rxf1+ {[%emt 0:02:01]} 23. Bxf1 {[%emt 0:00:19]} c5+ {[%emt 0:00:03]} 24. Bg2 {[%emt 0:04:51]} Bxg2+ {[%emt 0:01:07]} 25. Kxg2 {[%emt 0:01:03]} Re2+ {[%emt 0:00:07]} 26. Kh3 {[%emt 0:04:42]} c4 {[%emt 0:03:33]} 27. bxc4 {[%emt 0:19:00]} Nxc4 {[%emt 0:00:00]} 28. Rc2 {[%emt 0:03:09]} d5 {[%emt 0:00:00]} 29. g4 {[%emt 0:03:35]} g5 {[%emt 0:00:00]} 30. fxg5 {[%emt 0:01:34]} Bxg5 {[%emt 0:00:00]} 31. Rxc4 {[%emt 0:00:16]} dxc4 {[%emt 0:00:00]} 32. Bxg5 {[%emt 0:00:16]} Rb2 {[%emt 0:00:00]} 33. Nd2 {[%emt 0:01:05]} c3 {[%emt 0:00:00]} 34. Nc4 {[%emt 0:00:51]} Rb3 {[%emt 0:00:00]} 35. Kg2 {[%emt 0:00:57]} c2 {[%emt 0:00:00]} 36. Kf2 {[%emt 0:02:16]} Rc3 {[%emt 0:00:18]} 37. Ne5 {[%emt 0:01:39]} c1=Q {[%emt 0:00:06]} 38. Bxc1 {[%emt 0:00:04]} Rxc1 {[%emt 0:00:04]} 39. h4 {[%emt 0:00:22]} Rc3 {[%emt 0:00:14]} 40. a4 {[%emt 0:00:08]} Ra3 {[%emt 0:00:13]} 41. h5 {[%emt 0:15:37]} Rxa4 {[%emt 0:15:05]} 42. Kg3 {[%emt 0:00:17]} Kg7 {[%emt 0:00:23]} 43. g5 {[%emt 0:00:55]} c5 {[%emt 0:00:49]} 44. Kf3 {[%emt 0:01:04]} Rh4 {[%emt 0:01:13]} 45. h6+ {[%emt 0:00:32]} Kg8 {[%emt 0:00:05]} 46. Kg3 {[%emt 0:03:40]} Re4 {[%emt 0:00:08]} 47. Ng4 {[%emt 0:00:12]} Rxg4+ {[%emt 0:00:08]} 48. Kxg4 {[%emt 0:00:10]} a5 {[%emt 0:00:01]} 0-1